bitfinex/quotes_SOLUSD_20220227
["timestamp","ask_amount","ask_price","bid_price","bid_amount"]
[1645962664610,47.4778,90.779,90.711,110.2]
[1645962665009,46.9778,90.779,90.711,110.2]
[1645962665712,46.9778,90.779,90.711,112.94678921]
[1645962666413,46.9778,90.779,90.711,2.74678921]
[1645962666811,46.9778,90.779,90.71,23.5252]
[1645962666812,1.4428558,90.778,90.71,23.5252]
[1645962668713,1.4428558,90.778,90.711,38.15739225]
[1645962674127,4.407,90.809,90.711,38.15739225]
[1645962674128,5.98905709,90.809,90.712,141.90462333]
[1645962674327,24.4028,90.806,90.714,110.2]
[1645962674727,24.4028,90.806,90.716,110.2]
[1645962674927,44.06133706,90.805,90.716,110.2]
[1645962675128,44.06133706,90.805,90.718,110.2]
[1645962675629,44.06133706,90.805,90.719,2.74678921]
[1645962676030,44.06133706,90.805,90.721,110.2]
[1645962676431,44.06133706,90.805,90.722,2.74678921]
[1645962677234,44.06133706,90.805,90.724,110.2]
[1645962677433,24.4028,90.806,90.724,110.2]
[1645962677633,24.4028,90.806,90.726,110.2]
[1645962678033,24.4028,90.806,90.728,110.2]
[1645962678437,24.4028,90.806,90.73,110.2]
[1645962678634,39.07099429,90.805,90.732,110.2]
[1645962679038,39.07099429,90.805,90.733,2.74678921]
[1645962679336,39.07099429,90.805,90.734,110.2]
[1645962679736,39.07099429,90.805,90.735,2.74678921]
[1645962680535,39.07099429,90.805,90.736,110.2]
[1645962680835,39.07099429,90.805,90.737,2.74678921]
[1645962681138,39.07099429,90.805,90.737,31.70462333]
[1645962681635,24.4028,90.806,90.738,112.94678921]
[1645962682537,38.35930026,90.805,90.739,34.46642163]
[1645962685844,1.70435572,90.804,90.739,34.46642163]
[1645962687046,38.35930026,90.805,90.739,63.42425575]
[1645962688246,24.4028,90.806,90.739,63.42425575]
[1645962688454,24.4028,90.806,90.74,110.2]
[1645962688848,24.4028,90.806,90.742,110.2]
[1645962689051,24.4028,90.806,90.744,110.2]
[1645962689449,24.4028,90.806,90.743,56.30220808]
[1645962689650,24.4028,90.806,90.745,31.70462333]
[1645962690550,24.4028,90.806,90.745,2.74678921]
[1645962690766,25.80559164,90.806,90.743,24.7963]
[1645962691366,24.4028,90.806,90.744,110.2]
[1645962691765,24.4028,90.806,90.744,112.94678921]
[1645962691967,24.4028,90.806,90.745,2.74678921]
[1645962692366,24.4028,90.806,90.746,110.2]
[1645962693366,24.4028,90.806,90.746,112.94678921]
[1645962693567,23.118,90.822,90.746,112.94678921]
[1645962693768,24.8315,90.821,90.746,112.94678921]
[1645962695569,24.8315,90.821,90.748,110.2]
[1645962695969,24.8315,90.821,90.749,2.74678921]
[1645962698171,24.8315,90.821,90.751,110.2]
[1645962698577,24.8315,90.821,90.752,2.74678921]
[1645962698877,24.8315,90.821,90.754,110.2]
[1645962699480,24.8315,90.821,90.755,2.74678921]
[1645962700481,24.8315,90.821,90.757,110.2]
[1645962705287,24.8315,90.821,90.759,110.2]
[1645962705689,24.8315,90.821,90.758,28.95783412]
[1645962705888,24.8315,90.821,90.759,110.2]
[1645962706087,24.8315,90.821,90.758,28.95783412]
[1645962706290,24.8315,90.821,90.756,40.61239701]
[1645962706291,1.48754516,90.82,90.756,40.61239701]
[1645962710995,4.405,90.873,90.753,24.9337]
[1645962710996,75.46992973,90.982,90.822,176.22]
[1645962711193,70.8303764,90.982,90.928,2.0]
[1645962711394,3.875955,90.993,90.928,2.0]
[1645962711691,3.875955,90.993,90.848,71.7502]
[1645962711692,105.0,90.992,90.892,2.77448705]
[1645962711896,105.0,90.992,90.854,4.397]
[1645962711897,42.69118419,90.991,90.849,112.9977588]
[1645962712193,41.11483833,90.991,90.862,2.80052054]
[1645962712395,1.80308744,90.99,90.862,2.80052054]
[1645962712592,4.399,90.989,90.846,2.96507702]
[1645962712793,4.399,90.989,90.846,50.27387702]
[1645962712993,2.74678921,90.989,90.847,112.81550789]
[1645962713293,7.14578921,90.988,90.848,2.63699082]
[1645962713493,2.74678921,90.988,90.848,5.13378003]
[1645962713692,2.74678921,90.988,90.87,16.5039]
[1645962713892,40.61483833,90.991,90.871,2.9474078]
[1645962714092,2.74678921,90.988,90.871,2.9474078]
[1645962714294,4.399,90.987,90.863,3.11963992]
[1645962714697,4.399,90.987,90.9,16.5015]
[1645962714895,40.61483833,90.991,90.901,2.68073904]
[1645962715095,2.74678921,90.986,90.901,2.68073904]
[1645962715295,2.74678921,90.986,90.862,23.3373]
[1645962715495,4.399,90.985,90.863,3.12011222]
[1645962715695,4.399,90.985,90.88,16.5044]
[1645962715895,2.74678921,90.984,90.881,2.29887616]
[1645962716095,4.398,90.983,90.881,2.29887616]
[1645962716499,2.74678921,90.982,90.881,2.29887616]
[1645962716697,4.398,90.981,90.881,2.29887616]
[1645962717098,2.74678921,90.98,90.881,2.29887616]
[1645962717297,4.398,90.979,90.881,2.29887616]
[1645962717698,34.59729096,90.977,90.881,2.29887616]
[1645962717897,4.399,90.976,90.881,2.29887616]
[1645962718098,8.84885608,90.976,90.881,2.29887616]
[1645962718298,2.74678921,90.975,90.881,2.29887616]
[1645962718499,4.399,90.974,90.881,2.29887616]
[1645962718899,2.74678921,90.973,90.881,2.29887616]
[1645962719098,4.399,90.972,90.881,2.29887616]
[1645962719500,2.74678921,90.971,90.881,2.29887616]
[1645962719701,4.399,90.97,90.881,2.29887616]
[1645962720098,2.74678921,90.969,90.84,55.0275]
[1645962720299,4.4,90.968,90.847,2.29171898]
[1645962720698,2.74678921,90.967,90.847,2.29171898]
[1645962720898,4.4,90.966,90.847,2.29171898]
[1645962721107,2.74678921,90.967,90.848,1.67087018]
[1645962721299,2.74678921,90.966,90.871,2.66913559]
[1645962722304,4.399,90.965,90.871,2.66913559]
[1645962722702,2.74678921,90.964,90.851,2.81888624]
[1645962722903,110.2,90.959,90.851,2.81888624]
[1645962723104,1.45220948,90.958,90.851,2.81888624]
[1645962723302,4.4,90.957,90.851,2.81888624]
[1645962723503,7.14678921,90.957,90.851,2.81888624]
[1645962723705,1.57094757,90.955,90.829,2.9322695]
[1645962723905,4.4,90.954,90.829,2.9322695]
[1645962724105,7.14678921,90.954,90.83,1.67087018]
[1645962724304,16.5139,90.94,90.83,16.5138]
[1645962724528,110.2,90.937,90.831,2.43242932]
[1645962724704,110.2,90.935,90.8,2.74678921]
[1645962724909,1.4578631,90.934,90.797,2.42186724]
[1645962725108,4.402,90.933,90.797,2.42186724]
[1645962725307,110.2,90.932,90.797,2.42186724]
[1645962725506,110.2,90.93,90.797,2.42186724]
[1645962725710,1.76020346,90.929,90.797,2.42186724]
[1645962725911,16.5184,90.91,90.81,16.5176]
[1645962726211,40.04262945,90.909,90.811,3.010589]
[1645962726413,1.55779699,90.907,90.811,3.010589]
[1645962726613,4.402,90.906,90.811,3.010589]
[1645962726820,16.5206,90.9,90.796,2.36642444]
[1645962727014,1.62831773,90.899,90.796,2.36642444]
[1645962728018,16.5206,90.9,90.8,16.5198]
[1645962728220,16.5206,90.9,90.801,2.2928749]
[1645962729023,1.39201634,90.898,90.801,2.2928749]
[1645962729220,4.402,90.897,90.801,2.2928749]
[1645962730322,16.5206,90.9,90.801,2.2928749]
[1645962731222,110.2,90.899,90.801,2.2928749]
[1645962731423,5.77760534,90.898,90.801,2.2928749]
[1645962731625,110.2,90.897,90.801,2.2928749]
[1645962731824,110.2,90.887,90.782,2.89489419]
[1645962732032,4.402,90.886,90.782,2.89489419]
[1645962732431,110.2,90.885,90.782,2.89489419]
[1645962732634,110.2,90.883,90.747,2.5572949]
[1645962732831,5.81745907,90.884,90.71,48.4856]
[1645962732832,1.45325104,90.878,90.741,3.00254446]
[1645962733032,4.404,90.877,90.711,6.67989136]
[1645962733232,4.404,90.877,90.711,2.27589136]
[1645962733433,110.2,90.875,90.711,129.18179136]
[1645962733634,110.2,90.872,90.712,2.27342164]
[1645962733835,4.405,90.871,90.712,2.27342164]
[1645962734033,110.2,90.87,90.713,4.405]
[1645962734235,110.2,90.868,90.713,4.405]
[1645962734534,16.5325,90.84,90.721,110.2]
[1645962734734,32.98263372,90.839,90.722,3.10394566]
[1645962735736,16.532,90.83,90.74,16.5308]
[1645962735937,16.532,90.83,90.741,3.0075838]
[1645962736939,16.532,90.83,90.721,2.41901902]
[1645962737138,16.5356,90.81,90.721,2.41901902]
[1645962737338,34.43238784,90.809,90.721,2.41901902]
[1645962737538,34.43238784,90.809,90.712,3.06952269]
[1645962737740,2.74678921,90.808,90.712,3.06952269]
[1645962737938,4.407,90.807,90.666,112.89612342]
[1645962738138,110.2,90.806,90.667,2.2712206]
[1645962738337,110.2,90.804,90.667,2.2712206]
[1645962738538,110.2,90.802,90.667,2.2712206]
[1645962738837,4.408,90.801,90.669,110.2]
[1645962739038,4.408,90.801,90.67,2.45431239]
[1645962739237,2.74678921,90.801,90.671,4.408]
[1645962739441,2.74678921,90.8,90.671,4.408]
[1645962739642,19.28428921,90.8,90.682,3.0819353]
[1645962739840,19.28428921,90.8,90.683,4.408]
[1645962740041,4.408,90.799,90.683,2.74678921]
[1645962740244,34.43238784,90.809,90.685,110.2]
[1645962740442,34.43238784,90.809,90.686,2.51656474]
[1645962740644,34.43238784,90.809,90.701,110.2]
[1645962740844,34.43238784,90.809,90.703,110.2]
[1645962741044,34.43238784,90.809,90.705,110.2]
[1645962741245,34.43238784,90.809,90.707,110.2]
[1645962741445,34.43238784,90.809,90.708,2.26146094]
[1645962742447,34.43238784,90.809,90.73,16.5318]
[1645962742646,34.43238784,90.809,90.731,2.67354454]
[1645962745347,16.5342,90.82,90.731,2.67354454]
[1645962745552,4.406,90.827,90.741,2.38435659]
[1645962745749,49.5778,90.849,90.742,2.99667502]
[1645962746349,41.69850327,90.848,90.742,2.99667502]
[1645962746550,41.69850327,90.848,90.76,16.5264]
[1645962746750,44.44529248,90.848,90.761,2.91530958]
[1645962746949,2.74678921,90.847,90.761,2.91530958]
[1645962747152,2.74678921,90.847,90.734,2.30083376]
[1645962747361,4.405,90.846,90.734,2.30083376]
[1645962747750,2.74678921,90.845,90.734,2.30083376]
[1645962748158,41.69850327,90.848,90.735,110.2]
[1645962748349,41.69850327,90.848,90.736,2.76007535]
[1645962748552,16.5302,90.84,90.74,16.5297]
[1645962748751,16.5302,90.84,90.741,3.09919192]
[1645962749153,2.74678921,90.839,90.741,3.09919192]
[1645962749552,2.74678921,90.839,90.741,113.29919192]
[1645962749753,2.74678921,90.839,90.75,16.5285]
[1645962749954,2.74678921,90.839,90.751,2.82091686]
[1645962750155,2.74678921,90.839,90.751,113.02091686]
[1645962750354,2.74678921,90.839,90.752,2.78612886]
[1645962752362,41.69850327,90.848,90.761,110.2]
[1645962752663,41.69850327,90.848,90.762,2.61589528]
[1645962754661,41.69850327,90.848,90.77,16.525]
[1645962754861,41.69850327,90.848,90.771,2.64222552]
[1645962755872,44.44529248,90.848,90.771,2.64222552]
[1645962758491,41.69850327,90.848,90.771,2.64222552]
[1645962760089,41.69850327,90.848,90.771,112.84222552]
[1645962760290,41.69850327,90.848,90.78,16.5231]
[1645962760493,41.69850327,90.848,90.781,3.11346235]
[1645962762197,45.7735,90.869,90.781,3.11346235]
[1645962762397,45.7735,90.869,90.79,16.5213]
[1645962762596,45.7735,90.869,90.791,3.0853423]
[1645962763198,42.88441086,90.868,90.791,3.0853423]
[1645962763398,42.88441086,90.868,90.773,2.92237469]
[1645962763602,7.15078921,90.867,90.773,2.92237469]
[1645962763900,2.74678921,90.866,90.773,2.92237469]
[1645962764097,4.404,90.865,90.773,2.92237469]
[1645962764297,16.5268,90.86,90.773,2.92237469]
[1645962765098,4.404,90.859,90.773,2.92237469]
[1645962765699,16.5268,90.86,90.773,2.92237469]
[1645962765898,4.404,90.859,90.773,2.92237469]
[1645962766101,16.5268,90.86,90.773,2.92237469]
[1645962766299,4.404,90.859,90.773,2.92237469]
[1645962767704,16.5278,90.85,90.773,2.92237469]
[1645962768002,38.90910151,90.849,90.773,2.92237469]
[1645962769906,16.5296,90.84,90.773,2.92237469]
[1645962770106,110.2,90.839,90.763,2.92845945]
[1645962770306,4.405,90.838,90.763,2.92845945]
[1645962770506,110.2,90.837,90.72,2.88134118]
[1645962770705,110.2,90.837,90.688,126.4147]
[1645962770706,110.2,90.834,90.69,3.0864248]
[1645962770908,110.2,90.832,90.711,16.2974]
[1645962771108,110.2,90.832,90.712,2.76210738]
[1645962771109,4.405,90.831,90.712,2.76210738]
[1645962771306,4.405,90.831,90.713,2.27445338]
[1645962771509,16.5329,90.82,90.72,16.5329]
[1645962771705,36.0511521,90.818,90.722,2.91606465]
[1645962772306,36.0511521,90.818,90.724,2.79983986]
[1645962779615,36.0511521,90.818,90.731,110.2]
[1645962779815,36.0511521,90.818,90.739,7.15078921]
[1645962780016,36.0511521,90.818,90.74,24.5196]
[1645962780416,36.0511521,90.818,90.741,2.38877822]
[1645962780617,36.0511521,90.818,90.75,16.5276]
[1645962780821,36.0511521,90.818,90.751,2.29347805]
[1645962783319,24.5759,90.834,90.751,2.29347805]
[1645962783521,24.5759,90.834,90.752,24.5082]
[1645962783720,24.5759,90.834,90.753,3.11161842]
[1645962784322,42.80839234,90.833,90.753,3.11161842]
[1645962789129,132.34262571,90.832,90.753,3.11161842]
[1645962789328,132.34262571,90.832,90.73,16.5319]
[1645962789329,4.405,90.831,90.731,2.9714043]
[1645962789527,110.2,90.829,90.733,2.92682766]
[1645962789728,4.406,90.828,90.733,2.92682766]
[1645962790129,110.2,90.826,90.733,2.92682766]
[1645962790329,4.406,90.825,90.733,2.92682766]
[1645962791231,110.2,90.809,90.733,2.92682766]
[1645962791434,110.2,90.806,90.713,3.02733322]
[1645962791633,4.407,90.805,90.713,3.02733322]
[1645962792256,110.2,90.803,90.713,3.02733322]
[1645962792452,16.5399,90.79,90.713,3.02733322]
[1645962792651,142.36963607,90.789,90.713,3.02733322]
[1645962793052,4.407,90.788,90.713,3.02733322]
[1645962794457,16.5412,90.78,90.713,3.02733322]
[1645962794652,4.407,90.779,90.713,3.02733322]
[1645962795256,4.407,90.779,90.691,2.89366771]
[1645962795455,4.407,90.779,90.692,2.70017451]
[1645962795955,16.5437,90.77,90.692,2.70017451]
[1645962796156,43.43436073,90.769,90.692,2.70017451]
[1645962796756,43.43436073,90.769,90.678,2.90261589]
[1645962799858,110.2,90.768,90.678,2.90261589]
[1645962801262,110.2,90.759,90.678,2.90261589]
[1645962803864,110.2,90.749,90.678,2.90261589]
[1645962804061,110.2,90.747,90.673,2.78886854]
[1645962804261,45.06743536,90.748,90.673,2.78886854]
[1645962806866,45.06743536,90.748,90.674,2.06478113]
[1645962807465,45.06743536,90.748,90.68,16.5414]
[1645962807666,45.06743536,90.748,90.681,2.49408272]
[1645962808666,45.06743536,90.748,90.674,2.06478113]
[1645962813069,4.409,90.769,90.674,2.06478113]
[1645962813269,72.2323,90.799,90.675,2.74678921]
[1645962813270,4.409,90.794,90.675,2.74678921]
[1645962813468,24.8693,90.798,90.676,110.2]
[1645962813668,24.8693,90.798,90.677,2.98551825]
[1645962813869,24.8693,90.798,90.678,110.2]
[1645962814170,4.408,90.824,90.681,112.76810874]
[1645962814372,27.3604,90.842,90.682,2.96510379]
[1645962814569,22.9534,90.842,90.683,110.2]
[1645962814769,22.9534,90.842,90.684,2.95066794]
[1645962815171,32.54086662,90.841,90.721,110.2]
[1645962815372,32.54086662,90.841,90.74,55.0874]
[1645962815669,32.54086662,90.841,90.722,49.34070012]
[1645962815670,32.54086662,90.841,90.742,2.38280774]
[1645962815870,4.405,90.84,90.742,2.38280774]
[1645962816474,16.5307,90.84,90.75,16.5263]
[1645962816674,16.5307,90.84,90.751,2.40204932]
[1645962817071,16.5307,90.84,90.753,2.35703614]
[1645962819771,32.54086662,90.841,90.76,16.5268]
[1645962819972,32.54086662,90.841,90.761,2.75325968]
[1645962825676,16.5309,90.84,90.753,2.63757506]
[1645962827677,110.2,90.839,90.753,2.63757506]
[1645962828676,4.405,90.838,90.753,2.63757506]
[1645962829578,16.5309,90.84,90.753,2.63757506]
[1645962831180,20.9359,90.84,90.753,2.63757506]
[1645962834382,4.405,90.84,90.753,2.63757506]
[1645962834583,32.54086662,90.841,90.753,2.63757506]
[1645962840394,16.5305,90.84,90.753,2.63757506]
[1645962840593,39.5277,90.84,90.753,2.63757506]
[1645962840815,110.2,90.839,90.753,2.63757506]
[1645962841112,39.5277,90.84,90.753,2.63757506]
[1645962843517,110.2,90.839,90.753,2.63757506]
[1645962845217,16.5324,90.83,90.753,2.63757506]
[1645962845617,2.74678921,90.829,90.753,2.63757506]
[1645962845821,16.5324,90.83,90.753,2.63757506]
[1645962849724,110.2,90.839,90.753,2.63757506]
[1645962854629,22.9972,90.84,90.753,2.63757506]
[1645962854830,22.9972,90.84,90.76,16.5268]
[1645962855031,22.9972,90.84,90.761,2.74381302]
[1645962867144,110.2,90.839,90.761,2.74381302]
[1645962867344,4.405,90.838,90.753,3.06070249]
[1645962867546,110.2,90.837,90.753,3.06070249]
[1645962867746,4.405,90.836,90.753,3.06070249]
[1645962868352,114.605,90.837,90.753,3.06070249]
[1645962868550,16.5326,90.83,90.753,3.06070249]
[1645962877381,22.9972,90.84,90.753,3.06070249]
[1645962879078,22.9972,90.84,90.76,16.5263]
[1645962879280,22.9972,90.84,90.761,2.81666562]
[1645962879881,22.9972,90.84,90.762,4.405]
[1645962880182,22.9972,90.84,90.764,2.27537659]
[1645962880578,22.9972,90.84,90.771,2.27328902]
[1645962881180,22.9972,90.84,90.772,2.74678921]
[1645962881383,22.9972,90.84,90.771,2.27328902]
[1645962881982,37.92040038,90.844,90.771,2.27328902]
[1645962885886,37.89256758,90.844,90.771,2.27328902]
[1645962893094,148.09256758,90.844,90.771,2.27328902]
[1645962893291,2.74678921,90.843,90.771,2.27328902]
[1645962893491,2.74678921,90.843,90.764,2.955547]
[1645962893691,110.2,90.842,90.764,2.955547]
[1645962894092,2.74678921,90.841,90.764,2.955547]
[1645962894493,110.2,90.839,90.763,24.8489]
[1645962894696,110.2,90.837,90.763,24.8489]
[1645962894992,110.2,90.835,90.753,2.64394532]
[1645962895193,4.405,90.834,90.753,2.64394532]
[1645962895496,110.2,90.833,90.753,2.64394532]
[1645962895695,4.405,90.832,90.753,2.64394532]
[1645962895892,110.2,90.831,90.753,2.64394532]
[1645962896093,110.2,90.829,90.753,2.64394532]
[1645962896295,4.405,90.828,90.753,2.64394532]
[1645962896494,110.2,90.819,90.753,2.64394532]
[1645962896695,114.605,90.819,90.726,2.86034069]
[1645962896895,110.2,90.817,90.726,2.86034069]
[1645962897095,110.2,90.814,90.726,2.86034069]
[1645962897295,114.606,90.814,90.726,2.86034069]
[1645962897696,2.74678921,90.813,90.726,2.86034069]
[1645962898500,110.2,90.809,90.726,2.86034069]
[1645962898999,2.74678921,90.808,90.726,2.86034069]
[1645962899398,24.6033,90.807,90.726,2.86034069]
[1645962899998,38.82580433,90.815,90.726,2.86034069]
[1645962900700,24.5214,90.814,90.731,2.74650798]
[1645962901100,24.5214,90.814,90.732,2.43515928]
[1645962901501,24.5214,90.814,90.733,3.00430721]
[1645962902606,24.5214,90.814,90.74,16.53]
[1645962902903,24.5214,90.814,90.741,2.98083732]
[1645962903103,24.5214,90.814,90.743,2.49882284]
[1645962906405,134.7214,90.814,90.743,2.49882284]
[1645962907004,2.74678921,90.813,90.743,2.49882284]
[1645962907404,110.2,90.809,90.743,2.49882284]
[1645962908329,16.5353,90.81,90.743,2.49882284]
[1645962908829,19.28208921,90.81,90.743,2.49882284]
[1645962909431,110.2,90.809,90.743,2.49882284]
[1645962912138,110.2,90.807,90.7,16.5369]
[1645962912339,105.0,90.808,90.68,16.5404]
[1645962912340,110.2,90.799,90.68,16.5404]
[1645962912640,1.71835588,90.796,90.68,16.5404]
[1645962912839,110.2,90.794,90.685,24.6419]
[1645962913039,29.0589,90.795,90.685,24.6419]
[1645962913040,110.2,90.792,90.685,24.6419]
[1645962913239,52.20266646,90.795,90.685,24.6419]
[1645962913240,110.2,90.79,90.685,24.6419]
[1645962913444,110.2,90.767,90.685,24.6419]
[1645962913644,1.6993314,90.764,90.685,24.6419]
[1645962913844,4.408,90.763,90.685,24.6419]
[1645962914145,110.2,90.762,90.685,24.6419]
[1645962914343,1.68067279,90.761,90.685,24.6419]
[1645962914542,4.427462,90.761,90.685,24.6419]
[1645962914743,112.94678921,90.76,90.685,24.6419]
[1645962914945,1.87267384,90.759,90.685,24.6419]
[1645962915143,4.61946305,90.759,90.685,24.6419]
[1645962916343,2.74678921,90.758,90.685,24.6419]
[1645962916543,4.409,90.757,90.685,24.6419]
[1645962916749,2.74678921,90.758,90.685,24.6419]
[1645962916944,2.74678921,90.756,90.685,24.6419]
[1645962917143,16.5466,90.75,90.685,24.6419]
[1645962917344,1.56683594,90.764,90.685,24.6419]
[1645962919446,24.6509,90.766,90.685,24.6419]
[1645962919645,1.37148626,90.782,90.69,16.5396]
[1645962920347,1.37148626,90.782,90.691,2.74678921]
[1645962920549,1.37148626,90.782,90.7,16.5368]
[1645962920748,1.37148626,90.782,90.701,22.7195]
[1645962921647,45.10628056,90.776,90.701,22.7195]
[1645962923448,1.63124332,90.775,90.701,22.7195]
[1645962924151,4.408,90.795,90.71,16.5357]
[1645962924353,1.48255135,90.813,90.71,16.5357]
[1645962924550,1.48255135,90.813,90.711,7.15378921]
[1645962924751,5.94222218,90.819,90.712,24.4681]
[1645962924952,43.18503043,90.818,90.712,24.4681]
[1645962925254,1.77326858,90.817,90.712,24.4681]
[1645962925452,1.52135818,90.816,90.713,4.407]
[1645962925654,1.52135818,90.816,90.712,24.4681]
[1645962925852,111.72135818,90.816,90.73,16.5311]
[1645962926053,1.84230132,90.815,90.731,48.0153]
[1645962926652,1.39735066,90.814,90.731,48.0153]
[1645962928452,1.42524967,90.814,90.731,48.0153]
[1645962929355,26.12263733,90.815,90.731,48.0153]
[1645962930353,26.12263733,90.815,90.731,55.9653]
[1645962930554,22.7184,90.819,90.731,55.9653]
[1645962930755,22.7184,90.819,90.74,16.5302]
[1645962931557,42.27085469,90.818,90.74,16.5302]
[1645962932657,24.3642,90.836,90.74,16.5302]
[1645962932857,1.74944795,90.835,90.74,16.5302]
[1645962933056,26.12263733,90.844,90.741,112.94678921]
[1645962933257,16.5268,90.86,90.77,16.5245]
[1645962933557,24.46685451,90.857,90.77,16.5245]
[1645962933756,43.29298035,90.847,90.77,16.5245]
[1645962933958,43.29298035,90.847,90.771,24.4316]
[1645962934659,43.29298035,90.847,90.78,16.5231]
[1645962936259,24.46685451,90.857,90.78,16.5231]
[1645962937264,43.05141388,90.856,90.78,16.5231]
[1645962937762,23.8594,90.869,90.78,16.5231]
[1645962938563,32.36825568,90.868,90.78,16.5231]
[1645962939866,56.83511019,90.868,90.78,16.5231]
[1645962940063,1.3672069,90.867,90.78,16.5231]
[1645962940264,56.83511019,90.868,90.78,16.5231]
[1645962943281,32.36825568,90.868,90.78,16.5231]
[1645962943479,32.36825568,90.868,90.781,5.43196169]
[1645962943682,32.36825568,90.868,90.8,16.5186]
[1645962943880,32.36825568,90.868,90.801,23.6071]
[1645962947888,32.36825568,90.868,90.81,16.5174]
[1645962952888,4.402,90.902,90.81,16.5174]
[1645962953089,24.51697294,90.904,90.811,23.7849]
[1645962953288,50.84909896,90.918,90.83,16.5135]
[1645962953491,49.21667294,90.918,90.83,16.5135]
[1645962953687,24.6997,90.918,90.83,16.5135]
[1645962953888,40.18478981,90.917,90.83,16.5135]
[1645962954088,40.18478981,90.917,90.831,24.1265]
[1645962955389,0.72020154,90.916,90.831,24.1265]
[1645962960500,2.21890256,90.916,90.831,24.1265]
[1645962961001,2.21890256,90.916,90.84,16.5121]
[1645962961202,40.18478981,90.917,90.84,16.5121]
[1645962961802,1.55138367,90.916,90.84,16.5121]
[1645962962002,2.27158521,90.916,90.84,16.5121]
[1645962962403,1.55138367,90.916,90.84,16.5121]
[1645962962602,0.72020154,90.915,90.84,16.5121]
[1645962962804,23.68761711,90.915,90.84,16.5121]
[1645962963002,1.51754741,90.914,90.84,16.5121]
[1645962966406,1.51754741,90.914,90.831,24.1265]
[1645962970219,4.401,90.919,90.832,112.94678921]
[1645962970418,2.74678921,90.945,90.834,110.2]
[1645962970617,1.6391356,90.956,90.835,2.9716379]
[1645962970814,1.6391356,90.956,90.836,114.6]
[1645962971015,1.6391356,90.956,90.837,2.88910802]
[1645962971216,33.46724892,90.955,90.84,16.5117]
[1645962971418,1.76466902,90.954,90.841,110.2]
[1645962971718,1.76466902,90.954,90.842,4.4]
[1645962971915,1.76466902,90.954,90.843,156.4668]
[1645962972115,1.76466902,90.954,90.844,4.4]
[1645962972316,1.76466902,90.954,90.845,110.2]
[1645962972516,1.76466902,90.954,90.87,16.506]
[1645962972717,1.76466902,90.954,90.871,23.7777]
[1645962973517,1.76466902,90.954,90.88,16.5047]
[1645962974319,1.76466902,90.954,90.88,24.8847]
[1645962975718,1.76466902,90.954,90.88,16.5047]
[1645962981745,1.68704368,90.953,90.872,22.5205]
[1645962982143,4.399,90.952,90.872,22.5205]
[1645962983548,16.5099,90.95,90.872,22.5205]
[1645962983748,1.72079303,90.949,90.872,22.5205]
[1645962987352,6.11979303,90.949,90.872,22.5205]
[1645962990555,110.2,90.939,90.84,16.5114]
[1645962990754,110.2,90.937,90.845,22.667]
[1645962990957,1.45829873,90.936,90.845,22.667]
[1645962991357,4.20508794,90.936,90.845,22.667]
[1645962992559,1.45829873,90.936,90.85,16.51]
[1645962995059,1.45829873,90.936,90.85,44.11861131]
[1645962995663,1.782006,90.937,90.85,44.11861131]
[1645962995863,32.19691152,90.938,90.851,2.74678921]
[1645962996068,32.19691152,90.938,90.86,16.5073]
[1645962996265,32.19691152,90.938,90.861,22.6451]
[1645962997067,1.71777226,90.936,90.861,22.6451]
[1645962997567,4.4,90.935,90.861,22.6451]
[1645962998568,16.5136,90.93,90.861,22.6451]
[1645962998766,1.7724944,90.929,90.861,22.6451]
[1645963002092,111.9724944,90.929,90.861,22.6451]
[1645963002268,1.7724944,90.929,90.861,22.6451]
[1645963003171,1.43968338,90.928,90.861,22.6451]
[1645963003369,110.2,90.919,90.827,27.60861131]
[1645963003572,110.2,90.915,90.837,24.0998]
[1645963004071,1.47162266,90.913,90.837,24.0998]
[1645963004470,110.2,90.909,90.837,24.0998]
[1645963004671,1.85750779,90.908,90.837,24.0998]
[1645963004872,4.401,90.907,90.837,24.0998]
[1645963005070,1.85750779,90.908,90.837,24.0998]
[1645963005472,16.519,90.9,90.837,24.0998]